fUSD/lending_fUSD_20251221
["ID","MTS","AMOUNT","RATE_DAILY","PERIOD"]
[399421530,1766338239926,-1000.0,0.00013821,2]
[399421532,1766338239935,-1000.0,0.00013821,2]
[399421534,1766338239944,-1000.0,0.00013821,2]
[399421536,1766338239953,-1000.0,0.00013821,2]
[399421538,1766338239962,-500.0,0.00013821,2]
[399421540,1766338239972,-803.77125516,0.00013821,2]
[399421542,1766338239981,-1000.0,0.00013821,2]
[399421544,1766338239990,-1000.0,0.00013821,2]
[399421545,1766338239999,-1000.0,0.00013821,2]
[399421547,1766338240008,-1000.0,0.00013821,2]
[399421549,1766338240018,-1000.0,0.00013821,2]
[399421551,1766338240027,-1000.0,0.00013821,2]
[399421553,1766338240036,-1000.0,0.00013821,2]
[399421554,1766338240046,-1000.0,0.00013821,2]
[399421556,1766338240055,-1144.26340267,0.00013821,2]
[399421558,1766338240064,-936.70587254,0.00013821,2]
[399421559,1766338240073,-1000.0,0.00013821,2]
[399421560,1766338240082,-1000.0,0.00013821,2]
[399421561,1766338240090,-2049.69,0.00013821,2]
[399421562,1766338240099,-39621.4164478,0.00013959,2]
[399421563,1766338240108,-293.32,0.00014048,2]
[399421564,1766338240117,-2049.69,0.00014095,2]
[399421565,1766338240130,-2049.69,0.00014368,2]
[399421566,1766338240139,-1223.24574971,0.00014368,2]
[399421567,1766338240148,-158.72296276,0.00014368,2]
[399421568,1766338240157,-1500.0,0.00014368,2]
[399421569,1766338240166,-500.84654228,0.00014368,2]
[399421570,1766338240176,-1158.38653664,0.00014368,2]
[399421571,1766338240185,-1500.0,0.00014368,2]
[399421572,1766338240195,-597.40388542,0.00014368,2]
[399421573,1766338240204,-1500.0,0.00014368,2]
[399421574,1766338240216,-1500.0,0.00014368,2]
[399421575,1766338240227,-1500.0,0.00014368,2]
[399421576,1766338240237,-1500.0,0.00014368,2]
[399421577,1766338240247,-1500.0,0.00014368,2]
[399421578,1766338240256,-1500.0,0.00014368,2]
[399421579,1766338240266,-1500.0,0.00014368,2]
[399421580,1766338240275,-1500.0,0.00014368,2]
[399421581,1766338240284,-1500.0,0.00014368,2]
[399421582,1766338240293,-1503.75804982,0.00014368,2]
[399421583,1766338240302,-1500.0,0.00014368,2]
[399421584,1766338240311,-1500.0,0.00014368,2]
[399421585,1766338240320,-789.33467407,0.00014368,2]
[399421586,1766338240330,-1500.0,0.00014368,2]
[399421587,1766338240339,-1500.0,0.00014368,2]
[399421588,1766338240348,-980.21424336,0.00014368,2]
[399421589,1766338240357,-1600.0,0.00014493,2]
[399421590,1766338240366,-10000.0,0.0001451,2]
[399421591,1766338240376,-1000.0,0.00014592,2]
[399421592,1766338240385,-2049.69,0.00014642,2]
[399421593,1766338240395,-293.32,0.00014658,2]
[399421594,1766338240404,-39621.4164478,0.00014694,2]
[399421595,1766338240413,-151.0,0.0001476,2]
[399421596,1766338240423,-151.0,0.00014823,2]
[399421597,1766338240433,-500.0,0.00014916,2]
[399421598,1766338240443,-500.0,0.00014916,2]
[399421599,1766338240453,-500.0,0.00014916,2]
[399421600,1766338240463,-2049.69,0.00014916,2]
[399421601,1766338240472,-2000.0,0.00014916,2]
[399421602,1766338240482,-572.75082077,0.00014916,2]
[399421603,1766338240491,-2000.0,0.00014916,2]
[399421604,1766338240501,-1071.82272799,0.00014916,2]
[399421605,1766338240511,-629.20788422,0.00014916,2]
[399421606,1766338240520,-711.67995912,0.00014916,2]
[399421607,1766338240530,-1587.77987847,0.00014916,2]
[399421608,1766338240540,-2000.0,0.00014916,2]
[399421609,1766338240550,-436.03619538,0.00014916,2]
[399421610,1766338240559,-2000.0,0.00014916,2]
[399421611,1766338240570,-2000.0,0.00014916,2]
[399421612,1766338240580,-2000.0,0.00014916,2]
[399421613,1766338240589,-2000.0,0.00014916,2]
[399421614,1766338240599,-504.443568,0.00014916,2]
[399421615,1766338240610,-2000.0,0.00014916,2]
[399421616,1766338240619,-151.0,0.00014931,2]
[399421617,1766338240628,-151.0,0.00014931,2]
[399421618,1766338240637,-1009.3386006,0.00014987,2]
[399421619,1766338240646,-5014.92,0.00014999,2]
[399421620,1766338240655,-2040.75911121,0.00015,2]
[399421621,1766338240664,-1344.08769236,0.00015,14]
[399421622,1766338240673,-7944.46519883,0.00015,2]
[399421623,1766338240682,-21352.27553926,0.00015,2]
[399421624,1766338240691,-1154.75497368,0.00015,2]
[399421625,1766338240701,-25859.84987091,0.00015,2]
[399421626,1766338240710,-1252.0,0.00015003,2]
[399421627,1766338240720,-626.0,0.00015038,2]
[399421628,1766338240729,-4609.0,0.00015056,2]
[399421629,1766338240738,-500.0,0.0001515,2]
[399421630,1766338240747,-2049.69,0.0001519,2]
[399421631,1766338240757,-293.32,0.00015269,2]
[399421632,1766338240767,-1517.64,0.000153,2]
[399421633,1766338240776,-505.85702931,0.000154,2]
[399421634,1766338240785,-39621.4164478,0.0001543,2]
[399421635,1766338240794,-2049.69,0.00015464,2]
[399421636,1766338240803,-2500.0,0.00015464,2]
[399421637,1766338240812,-2500.0,0.00015464,2]
[399421638,1766338240821,-193.10611443,0.00015464,2]
[399421639,1766338240831,-2638.30499273,0.00015464,2]
[399421640,1766338240839,-2000.0,0.00015464,2]
[399421641,1766338240849,-2500.0,0.00015464,2]
[399421642,1766338240858,-2500.0,0.00015464,2]
[399421643,1766338240867,-514.45362555,0.00015464,2]
[399421644,1766338240876,-16701.27872054,0.00015556,2]
[399421645,1766338240886,-2049.69,0.00015738,2]
[399421646,1766338240895,-2228.99632343,0.00015807,2]
[399421647,1766338240904,-293.32,0.0001588,2]
[399421648,1766338240914,-180.25946369,0.00015912,2]
[399421649,1766338240923,-1000.0,0.00015918,2]
[399421650,1766338240932,-1600.0,0.00015942,2]
[399421651,1766338240941,-1009.33860059,0.00015944,2]
[399421652,1766338240951,-500.51801303,0.00015973,2]
[399421653,1766338240960,-500.0,0.00015973,2]
[399421654,1766338240969,-500.0,0.00015973,2]
[399421655,1766338240978,-162.38378184,0.00015973,2]
[399421656,1766338240987,-500.0,0.00015973,2]
[399421657,1766338240996,-500.0,0.00015973,2]
[399421658,1766338241005,-570.29356194,0.00015973,2]
[399421659,1766338241014,-500.0,0.00015973,2]
[399421660,1766338241023,-500.0,0.00015973,2]
[399421661,1766338241032,-518.86476464,0.00015973,2]
[399421662,1766338241040,-500.0,0.00015973,2]
[399421663,1766338241049,-500.0,0.00015973,2]
[399421664,1766338241059,-500.0,0.00015973,2]
[399421665,1766338241069,-500.0,0.00015973,2]
[399421666,1766338241081,-500.0,0.00015973,2]
[399421667,1766338241091,-500.0,0.00015973,2]
[399421668,1766338241100,-334.60508476,0.00015973,2]
[399421669,1766338241110,-500.0,0.00015973,2]
[399421670,1766338241119,-500.0,0.00015973,2]
[399421671,1766338241132,-500.0,0.00015973,2]
[399421672,1766338241141,-500.0,0.00015973,2]
[399421673,1766338241151,-500.0,0.00015973,2]
[399421674,1766338241161,-500.4654119,0.00015973,2]
[399421675,1766338241170,-500.0,0.00015973,2]
[399421676,1766338241179,-639.72398952,0.00015973,2]
[399421677,1766338241189,-500.0,0.00015973,2]
[399421678,1766338241199,-500.0,0.00015973,2]
[399421679,1766338241208,-500.0,0.00015973,2]
[399421680,1766338241217,-500.0,0.00015973,2]
[399421681,1766338241226,-150.17482874,0.00015973,2]
[399421682,1766338241236,-555.97636192,0.00015973,2]
[399421683,1766338241245,-500.0,0.00015973,2]
[399421684,1766338241255,-156.55034948,0.00015973,2]
[399421685,1766338241263,-160.18477965,0.00015973,2]
[399421686,1766338241273,-160.18818998,0.00015973,2]
[399421687,1766338241281,-160.18740865,0.00015973,2]
[399421688,1766338241290,-160.18741035,0.00015973,2]
[399421689,1766338241299,-160.18740865,0.00015973,2]
[399421690,1766338241308,-160.18740865,0.00015973,2]
[399421691,1766338241318,-500.0,0.00015973,2]
[399421692,1766338241328,-500.0,0.00015973,2]
[399421693,1766338241337,-500.0,0.00015973,2]
[399421694,1766338241347,-500.0,0.00015973,2]
[399421695,1766338241356,-506.25214638,0.00015973,2]
[399421696,1766338241365,-164.83274193,0.00015973,2]
[399421697,1766338241374,-500.0,0.00015973,2]
[399421698,1766338241383,-500.0,0.00015973,2]
[399421699,1766338241393,-500.0,0.00015973,2]
[399421700,1766338241402,-207.48820699,0.00015973,2]
[399421701,1766338241412,-500.0,0.00015973,2]
[399421702,1766338241422,-500.0,0.00015973,2]
[399421703,1766338241432,-509.1899532,0.00015973,2]
[399421704,1766338241441,-500.0,0.00015973,2]
[399421705,1766338241450,-530.05316157,0.00015973,2]
[399421706,1766338241459,-500.0,0.00015973,2]
[399421707,1766338241468,-162.2682575,0.00015973,2]
[399421708,1766338241477,-500.0,0.00015973,2]
[399421709,1766338241488,-160.58296236,0.00015973,2]
[399421710,1766338241497,-333.50168371,0.00015973,2]
[399421711,1766338241507,-206.6241759,0.00015973,2]
[399421712,1766338241516,-330.74959628,0.00015973,2]
[399421713,1766338241525,-500.0,0.00015973,2]
[399421714,1766338241535,-500.0,0.00015973,2]
[399421715,1766338241545,-500.0,0.00015973,2]
[399421716,1766338241554,-500.0,0.00015973,2]
[399421717,1766338241563,-500.67181276,0.00015973,2]
[399421718,1766338241572,-500.0,0.00015973,2]
[399421719,1766338241581,-500.0,0.00015973,2]
[399421720,1766338241590,-160.18740865,0.00015973,2]
[399421721,1766338241599,-500.0,0.00015973,2]
[399421722,1766338241608,-160.18740865,0.00015973,2]
[399421723,1766338241617,-509.50050033,0.00015973,2]
[399421724,1766338241627,-160.18740865,0.00015973,2]
[399421725,1766338241636,-160.18740865,0.00015973,2]
[399421726,1766338241645,-160.18741035,0.00015973,2]
[399421727,1766338241654,-500.0,0.00015973,2]
[399421728,1766338241663,-500.0,0.00015973,2]
[399421729,1766338241673,-160.10991314,0.00015973,2]
[399421730,1766338241682,-160.18546537,0.00015973,2]
[399421731,1766338241692,-160.18648397,0.00015973,2]
[399421732,1766338241701,-500.0,0.00015973,2]
[399421733,1766338241710,-160.18819168,0.00015973,2]
[399421734,1766338241720,-500.0,0.00015973,2]
[399421735,1766338241729,-168.59717172,0.00015973,2]
[399421736,1766338241739,-500.18172396,0.00015973,2]
[399421737,1766338241749,-500.0,0.00015973,2]
[399421738,1766338241758,-500.0,0.00015973,2]
[399421739,1766338241768,-307.28848797,0.00015973,2]
[399421740,1766338241777,-500.0,0.00015973,2]
[399421741,1766338241787,-500.0,0.00015973,2]
[399421742,1766338241796,-160.176,0.00015973,2]
[399421743,1766338241806,-500.0,0.00015973,2]
[399421744,1766338241815,-329.18672895,0.00015973,2]
[399421745,1766338241824,-500.0,0.00015973,2]
[399421746,1766338241834,-500.0,0.00015973,2]
[399421747,1766338241843,-483.03971098,0.00015973,2]
[399421748,1766338241852,-551.71631931,0.00015973,2]
[399421749,1766338241862,-374.4166707,0.00015973,2]
[399421750,1766338241871,-165.56666104,0.00015973,2]
[399421751,1766338241881,-500.0,0.00015973,2]
[399421752,1766338241890,-163.71055503,0.00015973,2]
[399421753,1766338241899,-908.58411009,0.0001599,2]
[399421754,1766338241910,-151.0,0.00015997,2]
[399421755,1766338241919,-1629052.95092654,0.00016,4]
[399421756,1766338241935,-401.616215,0.00016,4]
[399421757,1766338241946,-1409.95247366,0.00016,4]
[399421758,1766338241957,-558.38385669,0.00016,4]
[399421759,1766338241972,-8248.9553404,0.00016,4]
[399421760,1766338242434,-1.7e-07,0.000109,2]
[399421761,1766338242445,-1601.44207907,0.000109,2]
[399421765,1766338242670,-479970.80369723,0.00016,4]
[399421766,1766338242681,-500.0,0.00016012,2]
[399421767,1766338242691,-2049.69,0.00016012,2]
[399421768,1766338242700,-552.01,0.00016012,2]
[399421769,1766338242710,-500.0,0.00016012,2]
[399421770,1766338242720,-1003.31,0.00016012,2]
[399421771,1766338242730,-500.0,0.00016012,2]
[399421772,1766338242739,-3000.0,0.00016012,2]
[399421773,1766338242748,-1399.83178331,0.00016012,2]
[399421774,1766338242757,-2454.77156402,0.00016012,2]
[399421775,1766338242767,-3000.0,0.00016012,2]
[399421776,1766338242776,-6503.45,0.00016116,2]
[399421777,1766338242785,-39621.4164478,0.00016165,2]
[399421778,1766338242795,-5000.00832082,0.000162,5]
[399421779,1766338242805,-2049.69,0.00016286,2]
[399421780,1766338242814,-500.0,0.00016437,2]
[399421781,1766338242824,-500.0,0.00016437,2]
[399421782,1766338242833,-500.0,0.00016437,2]
[399421783,1766338242843,-681.56,0.00016438,2]
[399421784,1766338242852,-681.56,0.00016438,2]
[399421785,1766338242862,-681.56,0.00016438,2]
[399421786,1766338242872,-681.56,0.00016438,2]
[399421787,1766338242881,-681.56,0.00016438,2]
[399421788,1766338242891,-681.56,0.00016438,2]
[399421789,1766338242902,-12201.84,0.00016438,2]
[399421790,1766338242912,-800.0,0.00016438,2]
[399421791,1766338242921,-2129.0,0.00016484,2]
[399421792,1766338242931,-293.32,0.00016491,2]
[399421793,1766338242940,-1000.0,0.00016521,2]
[399421794,1766338242949,-1000.0,0.00016521,2]
[399421795,1766338242959,-500.56420784,0.00016521,2]
[399421796,1766338242968,-1000.0,0.00016521,2]
[399421797,1766338242977,-811.84683956,0.00016521,2]
[399421798,1766338242987,-1000.0,0.00016521,2]
[399421799,1766338242996,-1000.0,0.00016521,2]
[399421800,1766338243008,-1000.0,0.00016521,2]
[399421802,1766338243017,-1000.0,0.00016521,2]
[399421804,1766338243027,-590.29428357,0.00016521,2]
[399421806,1766338243036,-1000.0,0.00016521,2]
[399421808,1766338243045,-1000.0,0.00016521,2]
[399421810,1766338243054,-1000.0,0.00016521,2]
[399421812,1766338243063,-1000.0,0.00016521,2]
[399421814,1766338243073,-168.18676432,0.00016521,2]
[399421816,1766338243082,-500.65341776,0.00016521,2]
[399421818,1766338243091,-500.47443561,0.00016521,2]
[399421819,1766338243100,-1000.0,0.00016521,2]
[399421820,1766338243110,-979.05040621,0.00016521,2]
[399421821,1766338243120,-1000.0,0.00016521,2]
[399421822,1766338243133,-501.99535785,0.00016521,2]
[399421823,1766338243142,-1000.0,0.00016521,2]
[399421824,1766338243152,-1000.0,0.00016521,2]
[399421825,1766338243161,-1000.0,0.00016521,2]
[399421826,1766338243170,-1000.0,0.00016521,2]
[399421827,1766338243180,-1000.0,0.00016521,2]
[399421828,1766338243189,-1000.0,0.00016521,2]
[399421829,1766338243198,-378.15038662,0.00016521,2]
[399421830,1766338243208,-1000.0,0.00016521,2]
[399421831,1766338243218,-1001.73216536,0.00016521,2]
[399421832,1766338243227,-506.42109494,0.00016521,2]
[399421833,1766338243236,-1000.0,0.00016521,2]
[399421834,1766338243246,-1000.0,0.00016521,2]
[399421835,1766338243257,-1000.0,0.00016521,2]
[399421836,1766338243266,-986.87494443,0.00016521,2]
[399421837,1766338243275,-1000.0,0.00016521,2]
[399421838,1766338243285,-511.36256137,0.00016521,2]
[399421839,1766338243294,-452.23233136,0.00016521,2]
[399421840,1766338243304,-1000.0,0.00016521,2]
[399421841,1766338243312,-1000.0,0.00016521,2]
[399421842,1766338243322,-1000.0,0.00016521,2]
[399421843,1766338243331,-1000.0,0.00016521,2]
[399421844,1766338243340,-177.38138354,0.00016521,2]
[399421845,1766338243349,-500.67170266,0.00016521,2]
[399421846,1766338243359,-1001.48988543,0.00016521,2]
[399421847,1766338243368,-669.31135743,0.00016521,2]
[399421848,1766338243378,-576.10062402,0.00016521,2]
[399421849,1766338243388,-1000.0,0.00016521,2]
[399421850,1766338243397,-1000.0,0.00016521,2]
[399421851,1766338243407,-1000.0,0.00016521,2]
[399421852,1766338243416,-1000.0,0.00016521,2]
[399421853,1766338243425,-1000.0,0.00016521,2]
[399421854,1766338243434,-1051.62463888,0.00016542,2]
[399421855,1766338243444,-2049.69,0.0001656,2]
[399421856,1766338243453,-3500.0,0.0001656,2]
[399421857,1766338243462,-3500.0,0.0001656,2]
[399421858,1766338243472,-6453.0,0.00016561,2]
[399421859,1766338243481,-550.54952029,0.00016589,2]
[399421860,1766338243491,-500.0,0.00016642,2]
[399421861,1766338243500,-33641.81693319,0.0001665,2]
[399421862,1766338243510,-500.0,0.00016689,2]
[399421863,1766338243519,-1003.31,0.00016689,2]
[399421864,1766338243528,-2049.69,0.00016834,2]
[399421865,1766338243538,-203.5745508,0.000169,2]
[399421866,1766338243547,-1009.33860059,0.000169,2]
[399421867,1766338243556,-39621.4164478,0.000169,2]
[399421868,1766338243565,-262.48165757,0.00016941,2]
[399421869,1766338243575,-262.48165757,0.00016954,2]
[399421870,1766338243594,-262.48165757,0.00016968,2]
[399421871,1766338243603,-150.0,0.00016973,2]
[399421872,1766338243612,-150.32225297,0.00016973,2]
[399421873,1766338243620,-500.0,0.00016986,2]
[399421874,1766338243630,-500.0,0.00016986,2]
[399421875,1766338243639,-908.58411009,0.0001699,2]
[399421876,1766338243648,-151.0,0.00016997,2]
[399421877,1766338243659,-500.0,0.00016998,2]
[399421878,1766338243668,-2014.45964951,0.00016999,2]
[399421879,1766338243678,-681.56,0.00016999,2]
[399421880,1766338243687,-681.56,0.00016999,2]
[399421881,1766338243697,-681.56,0.00016999,2]
[399421882,1766338243706,-681.56,0.00016999,2]
[399421883,1766338243716,-681.56,0.00016999,2]
[399421884,1766338243725,-681.56,0.00016999,2]
[399421885,1766338243734,-681.56,0.00016999,2]
[399421886,1766338243743,-681.56,0.00016999,2]
[399421887,1766338243753,-681.56,0.00016999,2]
[399421888,1766338243762,-681.56,0.00016999,2]
[399421889,1766338243770,-681.56,0.00016999,2]
[399421890,1766338243779,-681.56,0.00016999,2]
[399421891,1766338243789,-681.56,0.00016999,2]
[399421892,1766338243799,-681.56,0.00016999,2]
[399421893,1766338243810,-681.56,0.00016999,2]
[399421894,1766338243821,-681.56,0.00016999,2]
[399421895,1766338243831,-681.56,0.00016999,2]
[399421896,1766338243841,-681.60076263,0.00016999,2]
[399421897,1766338243850,-991082.78300973,0.00017,2]
[399421898,1766338243864,-2919.09164166,0.00017,2]
[399421899,1766338243875,-220560.03769896,0.00017,2]
[399421900,1766338243887,-1339.21679113,0.00017,2]
[399421901,1766338243898,-383.4746105,0.00017,2]
[399421902,1766338243909,-9006.5371147,0.00017,2]
[399421903,1766338243921,-1723.07381486,0.00017,2]
[399421904,1766338243932,-1279.2779985,0.00017,2]
[399421905,1766338243943,-424.34554978,0.00017,2]
[399421906,1766338244008,-142.98110379,0.00017,2]
[399421907,1766338244020,-1325.45,0.00017,2]
[399421908,1766338244036,-254.39513532,0.00017,2]
[399421909,1766338244049,-836.99523524,0.00017,2]
[399421910,1766338244060,-423.95581672,0.00017,2]
[399421911,1766338244072,-3410.51349519,0.00017,2]
[399421922,1766338245520,-778.86652638,0.00011228,2]
[399421923,1766338245533,-822.57555284,0.00011228,2]
[399421924,1766338245542,-2335.38206781,0.00017,2]
[399421925,1766338245554,-36643.84372399,0.00017,2]
[399421926,1766338245566,-40404.95478861,0.00017,2]
[399421927,1766338245683,-308.93545843,0.00017,2]
[399421928,1766338245795,-9049.07545173,0.00017,2]
[399421929,1766338245806,-7518.40000043,0.00017,2]
[399421939,1766338286576,999.0,0.00032876,120]
[399421940,1766338286824,999.0,0.00033972,120]
[399421941,1766338287106,999.0,0.00035068,120]
[399421943,1766338297005,1617.902,0.00035056,40]
[399421946,1766338313437,-500.0,0.00010283,2]
[399421947,1766338313542,-1363.23777889,0.00010284,2]
[399421948,1766338313597,-10000.01,0.00010284,2]
[399421949,1766338325439,-300.0,0.00010283,2]
[399421950,1766338325487,-9400.01,0.00010284,2]
[399421951,1766338325991,245.18,0.000356,30]
[399421954,1766338360777,1094.4039346,0.0003561,30]
[399421955,1766338363691,199.0,0.00034246,30]
[399421956,1766338363919,199.0,0.00034931,31]
[399421957,1766338364167,199.0,0.00035616,32]
[399421961,1766338406496,151.0,0.00035616,31]
[399421962,1766338406780,151.0,0.00035616,31]
[399421963,1766338412691,-628.35445357,0.00010181,2]
[399421964,1766338444843,10000.0,0.000356,30]
[399421968,1766338511613,208.47413697,0.00032876,120]
[399421969,1766338517843,220.66,0.000356,30]
[399421982,1766338708621,198.6,0.000356,30]
[399421983,1766338714849,171.16,0.00035616,30]
[399421984,1766338725793,1219.28,0.00035616,30]
[399421985,1766338737129,1219.28,0.00035616,30]
[399421986,1766338748744,1219.28,0.00035616,30]
[399421987,1766338764195,1219.28,0.00035616,30]
[399421988,1766338773827,1219.28,0.00035616,30]
[399421989,1766338782665,1219.28,0.00035616,30]
[399421990,1766338791649,1219.28,0.00035616,30]
[399421991,1766338794938,5906.74,5.299e-05,2]
[399421992,1766338795136,4093.27,5.578e-05,2]
[399421993,1766338795524,1813.47,5.578e-05,2]
[399421994,1766338795621,5906.74,5.856e-05,2]
[399421995,1766338795797,2279.8,6.135e-05,2]
[399421996,1766338795820,3626.94,6.135e-05,2]
[399421997,1766338796001,5906.74,6.414e-05,2]
[399421998,1766338796202,466.33,6.693e-05,2]
[399421999,1766338796225,5440.41,6.693e-05,2]
[399422000,1766338796421,4559.6,6.972e-05,2]
[399422001,1766338796447,1347.14,6.972e-05,2]
[399422002,1766338796619,5906.74,7.251e-05,2]
[399422003,1766338796811,2746.13,7.53e-05,2]
[399422004,1766338796834,3160.61,7.53e-05,2]
[399422005,1766338797019,5906.74,7.809e-05,2]
[399422006,1766338797228,932.66,8.087e-05,2]
[399422007,1766338797251,4974.08,8.087e-05,2]
[399422008,1766338797695,5025.93,8.366e-05,2]
[399422009,1766338797717,880.81,8.366e-05,2]
[399422010,1766338797900,5906.74,8.645e-05,2]
[399422011,1766338798117,3212.46,8.924e-05,2]
[399422012,1766338798142,2694.28,8.924e-05,2]
[399422013,1766338798322,5906.74,9.203e-05,2]
[399422014,1766338798524,1398.99,9.482e-05,2]
[399422015,1766338798547,4507.75,9.482e-05,2]
[399422016,1766338798714,5492.26,9.761e-05,2]
[399422017,1766338798743,414.48,9.761e-05,2]
[399422018,1766338799340,1219.28,0.00035616,30]
[399422019,1766338805480,-4093.27,0.0001004,2]
[399422020,1766338805932,-1813.47,0.0001004,2]
[399422021,1766338805961,-232.0,0.0001004,2]
[399422022,1766338807963,1219.28,0.00035616,30]
[399422023,1766338816322,1219.28,0.00035616,30]
[399422025,1766338826265,1219.28,0.00035616,30]
[399422026,1766338835417,1219.28,0.00035616,30]
[399422027,1766338847293,1219.28,0.00035616,30]
[399422028,1766338857660,1219.28,0.00035616,30]
[399422029,1766338869744,1219.28,0.00035616,30]
[399422030,1766338896986,1294.321,0.00035045,40]
[399422031,1766338899882,178.74,0.000356,30]
[399422033,1766338924489,1219.28,0.00035616,30]
[399422034,1766338934272,1219.28,0.00035616,30]
[399422036,1766338976167,1219.28,0.00035616,30]
[399422037,1766339008896,1219.28,0.00035616,30]
[399422039,1766339070954,1219.28,0.00035616,30]
[399422040,1766339092160,160.86,0.000356,30]
[399422041,1766339093249,1219.28,0.00035616,30]
[399422042,1766339095628,200.0,0.0003561,30]
[399422043,1766339123063,1219.28,0.00035616,30]
[399422044,1766339151847,164.75,7.854e-05,2]
[399422045,1766339152281,164.75,9.163e-05,2]
[399422046,1766339183262,1219.28,0.00035616,30]
[399422047,1766339214921,1219.28,0.00035616,30]
[399422048,1766339245176,1219.28,0.00035616,30]
[399422049,1766339274737,166.66,9.828e-05,2]
[399422050,1766339284328,150.0,0.000356,30]
[399422051,1766339284451,227.08694988,0.00034246,30]
[399422052,1766339293445,8551.8,9.509e-05,2]
[399422053,1766339339951,-250.0,0.00010083,2]
[399422054,1766339339981,-153.59692508,0.00010083,2]
[399422055,1766339346165,1000.0,0.00035615,30]
[399422056,1766339346449,1000.0,0.00035615,30]
[399422057,1766339346727,1000.0,0.00035615,30]
[399422058,1766339346956,1000.0,0.00035067,30]
[399422059,1766339347178,1000.0,0.00035055,30]
[399422060,1766339354002,-1787.4974,0.00010084,2]
[399422061,1766339367177,719.99876677,9.984e-05,2]
[399422062,1766339370338,-8396.40442476,0.00010084,2]
[399422063,1766339370558,-10000.01,0.00010084,2]
[399422064,1766339370764,-10000.01,0.00010084,2]
[399422065,1766339387169,-169.43004117,0.00010006,2]
[399422066,1766339388278,-550.56872559,0.00010006,2]
[399422067,1766339388306,-719.99876676,0.00010027,2]
[399422068,1766339388353,-7458.8750153,0.00010084,2]
[399422069,1766339416673,2747.43125152,0.0001,2]
[399422075,1766339431634,-300.0,0.00010083,2]
[399422076,1766339431643,-3.63741467,0.00010083,2]
[399422077,1766339431659,-296.36258533,0.00010083,2]
[399422078,1766339431668,-1200.0,0.00010083,2]
[399422079,1766339431678,-233.0,0.00010083,2]
[399422080,1766339431687,-4435.91753905,0.00010084,2]
[399422081,1766339431698,-2535.48197541,0.00010084,2]
[399422082,1766339431718,-6619.02746425,0.00010084,2]
[399422083,1766339431731,-2238.41975202,0.00010084,2]
[399422084,1766339431742,-345.51780687,0.00010084,2]
[399422085,1766339431753,-111673.81512471,0.00010084,2]
[399422086,1766339431764,-7301.00305517,0.00010084,2]
[399422087,1766339431774,-129797.37802483,0.00010084,2]
[399422088,1766339431785,-19309.50960227,0.00010084,2]
[399422089,1766339431796,-3528.14577167,0.00010084,2]
[399422090,1766339431807,-4625.7895929,0.00010084,2]
[399422092,1766339431818,-17600.85840616,0.00010084,2]
[399422228,1766339437584,-86689.99999994,0.00010084,2]
[399422229,1766339437595,-567443.83644469,0.00010084,2]
[399422230,1766339437605,-250.0,0.00010127,2]
[399422231,1766339437614,-166.66,0.00010152,2]
[399422232,1766339437623,-14.90643343,0.00010181,2]
[399422233,1766339437632,-150.0,0.00010181,2]
[399422234,1766339437641,-300.0,0.00010181,2]
[399422235,1766339437651,-1200.0,0.00010181,2]
[399422236,1766339437660,-1281.06,0.00010181,2]
[399422237,1766339437669,-303.10909246,0.00010181,2]
[399422238,1766339437678,-500.0,0.00010181,2]
[399422239,1766339437687,-500.0,0.00010181,2]
[399422240,1766339437696,-395.56495023,0.00010181,2]
[399422241,1766339437705,-500.0,0.00010181,2]